[Event "Late-Titled-Tuesday-Blitz-May-07-2024"]
[Site "Chess.com"]
[Date "2024.05.07"]
[Round "5"]
[White "Albertu"]
[Black "Godzillator"]
[Result "1-0"]
[WhiteElo "2553"]
[BlackElo "2351"]
[TimeControl "180+1"]
[EndTime "14:57:01 PDT"]
[Termination "Albertu won by resignation"]

1. e4 {[%clk 0:03:00.9]} 1... d5 {[%clk 0:02:57.2]} 2. exd5 {[%clk 0:03:00.4]}
2... Qxd5 {[%clk 0:02:56.9]} 3. Nc3 {[%clk 0:03:00.5]} 3... Qd8 {[%clk
0:02:56.9]} 4. d4 {[%clk 0:02:57.4]} 4... c6 {[%clk 0:02:56.6]} 5. Nf3 {[%clk
0:02:57.8]} 5... Nf6 {[%clk 0:02:56.9]} 6. Bc4 {[%clk 0:02:58]} 6... Bf5 {[%clk
0:02:56.2]} 7. O-O {[%clk 0:02:57.7]} 7... e6 {[%clk 0:02:56.5]} 8. Re1 {[%clk
0:02:54.8]} 8... Be7 {[%clk 0:02:56.1]} 9. a4 {[%clk 0:02:53.6]} 9... O-O {[%clk
0:02:55.6]} 10. a5 {[%clk 0:02:39.1]} 10... Bg4 {[%clk 0:02:53.8]} 11. Be3
{[%clk 0:02:37.4]} 11... Bb4 {[%clk 0:02:40.5]} 12. a6 {[%clk 0:02:36.1]} 12...
b6 {[%clk 0:02:38.7]} 13. h3 {[%clk 0:02:13.8]} 13... Bh5 {[%clk 0:02:38.1]} 14.
Be2 {[%clk 0:01:58.8]} 14... Nd5 {[%clk 0:02:33.8]} 15. Bd2 {[%clk 0:01:55.1]}
15... Nxc3 {[%clk 0:02:32]} 16. bxc3 {[%clk 0:01:55.5]} 16... Bd6 {[%clk
0:02:31]} 17. Ne5 {[%clk 0:01:50.7]} 17... Bxe2 {[%clk 0:02:28.5]} 18. Qxe2
{[%clk 0:01:48.9]} 18... Qc7 {[%clk 0:02:27.9]} 19. Qg4 {[%clk 0:01:39.1]} 19...
Bxe5 {[%clk 0:02:24.2]} 20. dxe5 {[%clk 0:01:37.4]} 20... Kh8 {[%clk 0:02:18.9]}
21. Bg5 {[%clk 0:01:31.9]} 21... Nd7 {[%clk 0:02:17.1]} 22. Qe2 {[%clk 0:01:08]}
22... Rae8 {[%clk 0:02:02]} 23. Ra4 {[%clk 0:01:05]} 23... Nc5 {[%clk
0:01:59.2]} 24. Rh4 {[%clk 0:00:59]} 24... f6 {[%clk 0:01:18.4]} 25. exf6 {[%clk
0:00:38.7]} 25... gxf6 {[%clk 0:01:18]} 26. Be3 {[%clk 0:00:33.6]} 26... Nd7
{[%clk 0:01:12.1]} 27. Qh5 {[%clk 0:00:25.5]} 27... Re7 {[%clk 0:01:06.4]} 28.
Bh6 {[%clk 0:00:12.5]} 28... Rg8 {[%clk 0:01:06.2]} 29. Bf4 {[%clk 0:00:02]}
29... e5 {[%clk 0:01:05.3]} 30. Bg3 {[%clk 0:00:02.2]} 30... Reg7 {[%clk
0:01:02]} 31. Ree4 {[%clk 0:00:01.7]} 31... Qc8 {[%clk 0:00:54]} 32. Reg4 {[%clk
0:00:02.1]} 32... Nf8 {[%clk 0:00:43]} 33. Rxg7 {[%clk 0:00:01.4]} 33... Rxg7
{[%clk 0:00:42.6]} 34. Qh6 {[%clk 0:00:02.3]} 34... Ng6 {[%clk 0:00:37.6]} 35.
Rg4 {[%clk 0:00:02.9]} 35... Qg8 {[%clk 0:00:34.8]} 36. f4 {[%clk 0:00:03.2]}
36... exf4 {[%clk 0:00:33.7]} 37. Bxf4 {[%clk 0:00:04.1]} 37... Nxf4 {[%clk
0:00:30.7]} 38. Rxg7 {[%clk 0:00:04.7]} 38... Ne2+ {[%clk 0:00:26.7]} 39. Kf2
{[%clk 0:00:05.1]} 39... Qxg7 {[%clk 0:00:24.8]} 40. Qxg7+ {[%clk 0:00:06]}
40... Kxg7 {[%clk 0:00:24.6]} 41. Kxe2 {[%clk 0:00:06.9]} 41... Kg6 {[%clk
0:00:24.4]} 42. Ke3 {[%clk 0:00:07.4]} 42... Kf5 {[%clk 0:00:25.3]} 43. c4
{[%clk 0:00:05.6]} 43... h5 {[%clk 0:00:22.9]} 44. Kd4 {[%clk 0:00:05.1]} 44...
h4 {[%clk 0:00:22]} 45. c5 {[%clk 0:00:04.6]} 45... b5 {[%clk 0:00:21.7]} 46.
Ke3 {[%clk 0:00:04.3]} 46... Kg5 {[%clk 0:00:19.1]} 47. Kf3 {[%clk 0:00:04.8]}
47... f5 {[%clk 0:00:19]} 48. c3 {[%clk 0:00:05.1]} 48... Kf6 {[%clk 0:00:18.7]}
49. Kf4 {[%clk 0:00:06]} 49... Ke6 {[%clk 0:00:19.1]} 50. Kg5 {[%clk 0:00:06.5]}
50... Kd5 {[%clk 0:00:18.7]} 51. Kxh4 {[%clk 0:00:07.4]} 51... Kxc5 {[%clk
0:00:19]} 52. Kg5 {[%clk 0:00:08.1]} 52... Kc4 {[%clk 0:00:19.4]} 53. h4 {[%clk
0:00:09]} 53... Kxc3 {[%clk 0:00:19.8]} 54. h5 {[%clk 0:00:09.9]} 54... b4
{[%clk 0:00:20.7]} 55. h6 {[%clk 0:00:09.9]} 55... b3 {[%clk 0:00:21.6]} 56. h7
{[%clk 0:00:10.8]} 56... b2 {[%clk 0:00:22.4]} 57. h8=Q+ {[%clk 0:00:11.1]}
57... Kc2 {[%clk 0:00:22.9]} 58. Qxb2+ {[%clk 0:00:05.7]} 58... Kxb2 {[%clk
0:00:22.7]} 59. Kxf5 {[%clk 0:00:05.4]} 59... Kc3 {[%clk 0:00:20.5]} 60. g4
{[%clk 0:00:04.5]} 60... c5 {[%clk 0:00:18.4]} 61. g5 {[%clk 0:00:04.7]} 61...
c4 {[%clk 0:00:18.9]} 62. g6 {[%clk 0:00:05.6]} 62... Kd2 {[%clk 0:00:18.8]} 63.
g7 {[%clk 0:00:06.5]} 63... c3 {[%clk 0:00:19.4]} 64. g8=Q {[%clk 0:00:06.8]}
64... c2 {[%clk 0:00:20]} 65. Qg5+ {[%clk 0:00:05]} 65... Kd1 {[%clk 0:00:19.8]}
66. Ke6 {[%clk 0:00:05.2]} 66... c1=Q {[%clk 0:00:19.3]} 67. Qxc1+ {[%clk
0:00:05.8]} 67... Kxc1 {[%clk 0:00:19.5]} 68. Kd7 {[%clk 0:00:06.7]} 68... Kb2
{[%clk 0:00:19.4]} 69. Kc7 {[%clk 0:00:07.6]} 69... Kc3 {[%clk 0:00:19.9]} 70.
Kb7 {[%clk 0:00:08.5]} 70... Kc4 {[%clk 0:00:20.5]} 71. Kxa7 {[%clk 0:00:09.4]}
71... Kd5 {[%clk 0:00:21]} 72. Kb7 {[%clk 0:00:09.1]} 1-0

[Event "Late-Titled-Tuesday-Blitz-May-07-2024"]
[Site "Chess.com"]
[Date "2024.05.07"]
[Round "5"]
[White "Franmu14"]
[Black "ChristopherYoo"]
[Result "1/2-1/2"]
[WhiteElo "2749"]
[BlackElo "2998"]
[TimeControl "180+1"]
[EndTime "14:57:05 PDT"]
[Termination "Game drawn by repetition"]

1. e4 {[%clk 0:03:00.9]} 1... e5 {[%clk 0:02:48.3]} 2. Nf3 {[%clk 0:02:58.5]}
2... Nc6 {[%clk 0:02:48.9]} 3. Nc3 {[%clk 0:02:58.5]} 3... Bc5 {[%clk
0:02:37.1]} 4. Bb5 {[%clk 0:02:53.2]} 4... Nge7 {[%clk 0:02:36.8]} 5. O-O {[%clk
0:02:51.6]} 5... O-O {[%clk 0:02:35.1]} 6. Nxe5 {[%clk 0:02:43.6]} 6... Nxe5
{[%clk 0:02:34.4]} 7. d4 {[%clk 0:02:43.7]} 7... Bd6 {[%clk 0:02:35.1]} 8. dxe5
{[%clk 0:02:26.5]} 8... Bxe5 {[%clk 0:02:36]} 9. f4 {[%clk 0:02:26.6]} 9... Bxc3
{[%clk 0:02:34.8]} 10. bxc3 {[%clk 0:02:27.5]} 10... d5 {[%clk 0:02:30.5]} 11.
Bd3 {[%clk 0:02:13.7]} 11... c5 {[%clk 0:01:51.6]} 12. c4 {[%clk 0:02:12.8]}
12... dxe4 {[%clk 0:01:48.1]} 13. Bxe4 {[%clk 0:02:13.7]} 13... Qxd1 {[%clk
0:01:36.9]} 14. Rxd1 {[%clk 0:02:14.6]} 14... Rb8 {[%clk 0:01:37.3]} 15. Bb2
{[%clk 0:02:08.8]} 15... Bf5 {[%clk 0:01:28.2]} 16. Bxf5 {[%clk 0:01:49.9]}
16... Nxf5 {[%clk 0:01:23.7]} 17. Rd7 {[%clk 0:01:45.2]} 17... f6 {[%clk
0:01:02.2]} 18. Re1 {[%clk 0:01:43.3]} 18... Rf7 {[%clk 0:00:57.5]} 19. Rd5
{[%clk 0:01:40.1]} 19... Re7 {[%clk 0:00:51.2]} 20. Rxe7 {[%clk 0:01:36.7]}
20... Nxe7 {[%clk 0:00:52.1]} 21. Rxc5 {[%clk 0:01:37]} 21... Nc6 {[%clk
0:00:49.6]} 22. Rd5 {[%clk 0:01:29.8]} 22... Re8 {[%clk 0:00:49.3]} 23. Kf2
{[%clk 0:01:28.3]} 23... Re4 {[%clk 0:00:49.2]} 24. Kf3 {[%clk 0:01:10.3]} 24...
Rxc4 {[%clk 0:00:48.6]} 25. Rd2 {[%clk 0:01:10]} 25... Rb4 {[%clk 0:00:41.4]}
26. c3 {[%clk 0:01:05.9]} 26... Ra4 {[%clk 0:00:41]} 27. a3 {[%clk 0:01:05.3]}
27... Ra6 {[%clk 0:00:33.1]} 28. g4 {[%clk 0:01:00.4]} 28... Rb6 {[%clk
0:00:30.9]} 29. h4 {[%clk 0:00:57.3]} 29... Na5 {[%clk 0:00:29.5]} 30. Bc1
{[%clk 0:00:55]} 30... Nc6 {[%clk 0:00:20.6]} 31. Ke4 {[%clk 0:00:53.2]} 31...
Rb1 {[%clk 0:00:19.7]} 32. Rc2 {[%clk 0:00:51]} 32... Kf7 {[%clk 0:00:19.6]} 33.
Kd5 {[%clk 0:00:47.8]} 33... Ke7 {[%clk 0:00:17.5]} 34. h5 {[%clk 0:00:44.2]}
34... Kd7 {[%clk 0:00:15.7]} 35. g5 {[%clk 0:00:44.1]} 35... fxg5 {[%clk
0:00:15.3]} 36. fxg5 {[%clk 0:00:44.2]} 36... Rb5+ {[%clk 0:00:15.4]} 37. Kc4
{[%clk 0:00:42.2]} 37... Rf5 {[%clk 0:00:15.1]} 38. Rd2+ {[%clk 0:00:40]} 38...
Ke6 {[%clk 0:00:13.1]} 39. Re2+ {[%clk 0:00:40.3]} 39... Re5 {[%clk 0:00:07.7]}
40. Rf2 {[%clk 0:00:37]} 40... Re4+ {[%clk 0:00:07]} 41. Kd3 {[%clk 0:00:36.3]}
41... Rh4 {[%clk 0:00:06.5]} 42. h6 {[%clk 0:00:36.3]} 42... Ne5+ {[%clk
0:00:06.7]} 43. Kc2 {[%clk 0:00:34.7]} 43... gxh6 {[%clk 0:00:06.3]} 44. gxh6
{[%clk 0:00:27.5]} 44... Nf7 {[%clk 0:00:06.4]} 45. Rg2 {[%clk 0:00:22.9]} 45...
Nxh6 {[%clk 0:00:02.2]} 46. Bxh6 {[%clk 0:00:19.8]} 46... Rxh6 {[%clk
0:00:03.1]} 47. Rg7 {[%clk 0:00:20.1]} 47... Rh2+ {[%clk 0:00:03.3]} 48. Kb3
{[%clk 0:00:20.5]} 48... b6 {[%clk 0:00:03]} 49. Rxa7 {[%clk 0:00:20.9]} 49...
Kd5 {[%clk 0:00:03.4]} 50. Rd7+ {[%clk 0:00:20.7]} 50... Kc6 {[%clk 0:00:03.8]}
51. Rg7 {[%clk 0:00:20.7]} 51... h5 {[%clk 0:00:04.4]} 52. Rg6+ {[%clk
0:00:20.9]} 52... Kc7 {[%clk 0:00:03.6]} 53. Rg7+ {[%clk 0:00:21.2]} 53... Kc6
{[%clk 0:00:03.5]} 54. Rg6+ {[%clk 0:00:21.7]} 54... Kb7 {[%clk 0:00:04.1]} 55.
Kc4 {[%clk 0:00:20.8]} 55... h4 {[%clk 0:00:04.1]} 56. Rh6 {[%clk 0:00:21.3]}
56... h3 {[%clk 0:00:04]} 57. a4 {[%clk 0:00:19.8]} 57... Rh1 {[%clk 0:00:03.6]}
58. Rh5 {[%clk 0:00:19.3]} 58... h2 {[%clk 0:00:03]} 59. Rh6 {[%clk 0:00:19.5]}
59... Kc7 {[%clk 0:00:03.5]} 60. Rh5 {[%clk 0:00:19.7]} 60... Kd6 {[%clk
0:00:03.8]} 61. Rh6+ {[%clk 0:00:19.9]} 61... Ke5 {[%clk 0:00:04.3]} 62. Rh7
{[%clk 0:00:20.4]} 62... Kf4 {[%clk 0:00:04.5]} 63. Rh6 {[%clk 0:00:20.6]} 63...
Ke3 {[%clk 0:00:04.8]} 64. Rh7 {[%clk 0:00:19.5]} 64... Kd2 {[%clk 0:00:04.9]}
65. Rh3 {[%clk 0:00:19.7]} 65... Kc2 {[%clk 0:00:05.3]} 66. Rh4 {[%clk
0:00:19.9]} 66... Kb2 {[%clk 0:00:05.8]} 67. Rh3 {[%clk 0:00:20.2]} 67... Ka3
{[%clk 0:00:06.4]} 68. Rh8 {[%clk 0:00:18.1]} 68... Kb2 {[%clk 0:00:06.3]} 69.
Rh7 {[%clk 0:00:18]} 69... Kc2 {[%clk 0:00:06.6]} 70. Rh8 {[%clk 0:00:18.5]}
70... Kd2 {[%clk 0:00:06.9]} 71. Rh7 {[%clk 0:00:19]} 71... Ke2 {[%clk
0:00:07.5]} 72. Rh8 {[%clk 0:00:19.8]} 72... Kf2 {[%clk 0:00:07.9]} 73. Rh7
{[%clk 0:00:20.3]} 73... Kg2 {[%clk 0:00:08.5]} 74. Rg7+ {[%clk 0:00:20.6]}
74... Kf3 {[%clk 0:00:09.1]} 75. Rh7 {[%clk 0:00:21.1]} 75... Kg4 {[%clk
0:00:09.1]} 76. Rg7+ {[%clk 0:00:21.4]} 76... Kf5 {[%clk 0:00:09.2]} 77. Rh7
{[%clk 0:00:22]} 77... Ke4 {[%clk 0:00:09.9]} 78. Rh4+ {[%clk 0:00:22]} 78...
Ke3 {[%clk 0:00:09.6]} 79. Rh8 {[%clk 0:00:22.9]} 79... Kd2 {[%clk 0:00:09.8]}
80. Rh7 {[%clk 0:00:23.2]} 80... Kc2 {[%clk 0:00:10.1]} 81. Rh6 {[%clk
0:00:23.6]} 81... Kd2 {[%clk 0:00:10]} 82. Rh7 {[%clk 0:00:23.9]} 1/2-1/2

[Event "Late-Titled-Tuesday-Blitz-May-07-2024"]
[Site "Chess.com"]
[Date "2024.05.07"]
[Round "5"]
[White "SharathRk6"]
[Black "nitpicker"]
[Result "0-1"]
[WhiteElo "2457"]
[BlackElo "2287"]
[TimeControl "180+1"]
[EndTime "14:57:08 PDT"]
[Termination "nitpicker won by checkmate"]

1. e4 {[%clk 0:02:56.2]} 1... c5 {[%clk 0:02:58.9]} 2. Nf3 {[%clk 0:02:56.2]}
2... Nc6 {[%clk 0:02:58.1]} 3. Bb5 {[%clk 0:02:55.3]} 3... Nf6 {[%clk
0:02:56.2]} 4. d3 {[%clk 0:02:52.7]} 4... g6 {[%clk 0:02:53.1]} 5. Bxc6 {[%clk
0:02:53.1]} 5... dxc6 {[%clk 0:02:52.7]} 6. h3 {[%clk 0:02:53.8]} 6... Bg7
{[%clk 0:02:51.9]} 7. Nc3 {[%clk 0:02:54]} 7... O-O {[%clk 0:02:40.6]} 8. O-O
{[%clk 0:02:53.3]} 8... Nd7 {[%clk 0:02:34.2]} 9. Ne2 {[%clk 0:02:52.8]} 9... e5
{[%clk 0:02:34]} 10. Nh2 {[%clk 0:02:52.8]} 10... Qc7 {[%clk 0:02:11.5]} 11. f4
{[%clk 0:02:52.2]} 11... exf4 {[%clk 0:02:09.6]} 12. Bxf4 {[%clk 0:02:53.1]}
12... Be5 {[%clk 0:01:58.8]} 13. Ng4 {[%clk 0:02:50.5]} 13... Bxf4 {[%clk
0:01:49.3]} 14. Nxf4 {[%clk 0:02:51.4]} 14... Qd6 {[%clk 0:01:26.1]} 15. Qf3
{[%clk 0:02:28.3]} 15... f6 {[%clk 0:01:15.7]} 16. Qg3 {[%clk 0:02:25.3]} 16...
Ne5 {[%clk 0:01:02.2]} 17. Nh6+ {[%clk 0:02:07]} 17... Kh8 {[%clk 0:00:57.4]}
18. Rae1 {[%clk 0:01:58.1]} 18... Bd7 {[%clk 0:00:54.2]} 19. Ng4 {[%clk
0:01:24.3]} 19... Rae8 {[%clk 0:00:37]} 20. Qh4 {[%clk 0:00:55.3]} 20... g5
{[%clk 0:00:28]} 21. Qh6 {[%clk 0:00:37.2]} 21... gxf4 {[%clk 0:00:24.1]} 22.
Rxf4 {[%clk 0:00:34.4]} 22... Ng6 {[%clk 0:00:20.7]} 23. Rf2 {[%clk 0:00:31]}
23... f5 {[%clk 0:00:19.9]} 24. e5 {[%clk 0:00:27.5]} 24... Qd4 {[%clk 0:00:16]}
25. Nf6 {[%clk 0:00:13.2]} 25... Rxf6 {[%clk 0:00:13.3]} 26. exf6 {[%clk
0:00:13.6]} 26... Rxe1+ {[%clk 0:00:12.4]} 27. Kh2 {[%clk 0:00:14.5]} 27... Qxf6
{[%clk 0:00:11.9]} 28. g3 {[%clk 0:00:08.9]} 28... Qe7 {[%clk 0:00:09.6]} 29.
Qh5 {[%clk 0:00:06.8]} 29... Qe5 {[%clk 0:00:05.2]} 30. Qg5 {[%clk 0:00:06.3]}
30... Be6 {[%clk 0:00:03.3]} 31. Qd8+ {[%clk 0:00:06.2]} 31... Kg7 {[%clk
0:00:02.8]} 32. h4 {[%clk 0:00:06.6]} 32... h5 {[%clk 0:00:01.9]} 33. Qg5 {[%clk
0:00:06.6]} 33... f4 {[%clk 0:00:02.2]} 34. gxf4 {[%clk 0:00:05.3]} 34... Qxg5
{[%clk 0:00:01.9]} 35. hxg5 {[%clk 0:00:05.7]} 35... Bg4 {[%clk 0:00:02.6]} 36.
f5 {[%clk 0:00:05.9]} 36... Nh4 {[%clk 0:00:02.8]} 37. f6+ {[%clk 0:00:06]}
37... Kf7 {[%clk 0:00:02.1]} 38. Kg3 {[%clk 0:00:06.6]} 38... Ng6 {[%clk
0:00:02]} 39. c3 {[%clk 0:00:04.2]} 39... Re2 {[%clk 0:00:02.2]} 40. Rxe2 {[%clk
0:00:03.8]} 40... Bxe2 {[%clk 0:00:01.9]} 41. d4 {[%clk 0:00:04.7]} 41... Bc4
{[%clk 0:00:01.9]} 42. b3 {[%clk 0:00:04.5]} 42... Bd3 {[%clk 0:00:02.2]} 43.
dxc5 {[%clk 0:00:04.7]} 43... Bb1 {[%clk 0:00:03]} 44. a4 {[%clk 0:00:04.7]}
44... Ba2 {[%clk 0:00:03.7]} 45. b4 {[%clk 0:00:05.3]} 45... Bc4 {[%clk
0:00:04.2]} 46. a5 {[%clk 0:00:05.2]} 46... a6 {[%clk 0:00:04.4]} 47. Kh3 {[%clk
0:00:05.7]} 47... Nf4+ {[%clk 0:00:04.3]} 48. Kg3 {[%clk 0:00:06.2]} 48... Ng6
{[%clk 0:00:04.5]} 49. Kh3 {[%clk 0:00:06.6]} 49... h4 {[%clk 0:00:05]} 50. Kg4
{[%clk 0:00:06.8]} 50... Be6+ {[%clk 0:00:05.1]} 51. Kf3 {[%clk 0:00:07.5]}
51... h3 {[%clk 0:00:05.1]} 52. Kg3 {[%clk 0:00:08.4]} 52... Bf5 {[%clk
0:00:05.3]} 53. Kh2 {[%clk 0:00:08.8]} 53... Ke6 {[%clk 0:00:05.5]} 54. c4
{[%clk 0:00:09]} 54... Ke5 {[%clk 0:00:05.6]} 55. b5 {[%clk 0:00:09.6]} 55...
Kd4 {[%clk 0:00:05.6]} 56. f7 {[%clk 0:00:07.9]} 56... Nf8 {[%clk 0:00:05]} 57.
bxc6 {[%clk 0:00:07.4]} 57... bxc6 {[%clk 0:00:04.7]} 58. Kg3 {[%clk 0:00:08.3]}
58... Kxc5 {[%clk 0:00:04.8]} 59. Kh2 {[%clk 0:00:09.2]} 59... Kxc4 {[%clk
0:00:05.2]} 60. Kg3 {[%clk 0:00:09.9]} 60... Kb5 {[%clk 0:00:05.5]} 61. g6
{[%clk 0:00:10.4]} 61... Bxg6 {[%clk 0:00:05.1]} 62. Kh2 {[%clk 0:00:11.3]}
62... Bxf7 {[%clk 0:00:05.5]} 63. Kxh3 {[%clk 0:00:11.8]} 63... Bd5 {[%clk
0:00:06.2]} 64. Kg3 {[%clk 0:00:12.7]} 64... Kxa5 {[%clk 0:00:06.2]} 65. Kf4
{[%clk 0:00:13.6]} 65... Kb4 {[%clk 0:00:06.9]} 66. Ke3 {[%clk 0:00:14.5]} 66...
a5 {[%clk 0:00:07.3]} 67. Kd2 {[%clk 0:00:15.4]} 67... a4 {[%clk 0:00:07.9]} 68.
Kc1 {[%clk 0:00:16.3]} 68... a3 {[%clk 0:00:08.5]} 69. Kb1 {[%clk 0:00:17.2]}
69... c5 {[%clk 0:00:08.7]} 70. Ka1 {[%clk 0:00:18.1]} 70... c4 {[%clk
0:00:09.3]} 71. Kb1 {[%clk 0:00:18.6]} 71... c3 {[%clk 0:00:09.8]} 72. Ka1
{[%clk 0:00:19.5]} 72... Kb3 {[%clk 0:00:09.6]} 73. Kb1 {[%clk 0:00:19.9]} 73...
c2+ {[%clk 0:00:09.1]} 74. Kc1 {[%clk 0:00:20.3]} 74... Nd7 {[%clk 0:00:09.2]}
75. Kd2 {[%clk 0:00:19.2]} 75... a2 {[%clk 0:00:09.8]} 76. Kd3 {[%clk
0:00:20.1]} 76... a1=Q {[%clk 0:00:09.5]} 77. Ke3 {[%clk 0:00:20.6]} 77... Qc3+
{[%clk 0:00:09.7]} 78. Kf4 {[%clk 0:00:21.5]} 78... Qf3+ {[%clk 0:00:09.6]} 79.
Kg5 {[%clk 0:00:22.4]} 79... Qg3+ {[%clk 0:00:09.4]} 80. Kh6 {[%clk 0:00:22.6]}
80... Qd6+ {[%clk 0:00:09.3]} 81. Kh7 {[%clk 0:00:23.1]} 81... Qe6 {[%clk
0:00:09.2]} 82. Kg7 {[%clk 0:00:23.2]} 82... Kc3 {[%clk 0:00:09.4]} 83. Kh8
{[%clk 0:00:22.7]} 83... Kd4 {[%clk 0:00:09.9]} 84. Kh7 {[%clk 0:00:22.8]} 84...
c1=Q {[%clk 0:00:09.5]} 85. Kg7 {[%clk 0:00:23.4]} 85... Qg1+ {[%clk 0:00:08.9]}
86. Kh7 {[%clk 0:00:23.2]} 86... Qgg6+ {[%clk 0:00:08.7]} 87. Kh8 {[%clk
0:00:23.3]} 87... Qh3# {[%clk 0:00:09]} 0-1

[Event "Late-Titled-Tuesday-Blitz-May-07-2024"]
[Site "Chess.com"]
[Date "2024.05.07"]
[Round "5"]
[White "alexrustemov"]
[Black "Emp3rador"]
[Result "0-1"]
[WhiteElo "2908"]
[BlackElo "2640"]
[TimeControl "180+1"]
[EndTime "14:57:11 PDT"]
[Termination "Emp3rador won by checkmate"]

1. d4 {[%clk 0:03:00.9]} 1... d5 {[%clk 0:02:57.7]} 2. c4 {[%clk 0:03:01]} 2...
c6 {[%clk 0:02:56.1]} 3. Nc3 {[%clk 0:03:00.6]} 3... Nf6 {[%clk 0:02:56.3]} 4.
e3 {[%clk 0:03:00.9]} 4... g6 {[%clk 0:02:55.9]} 5. Nf3 {[%clk 0:03:01.1]} 5...
Bg7 {[%clk 0:02:56.6]} 6. Be2 {[%clk 0:03:01.3]} 6... O-O {[%clk 0:02:57.2]} 7.
O-O {[%clk 0:03:01.7]} 7... b6 {[%clk 0:02:54.6]} 8. b3 {[%clk 0:02:56.9]} 8...
Bb7 {[%clk 0:02:53]} 9. Bb2 {[%clk 0:02:57.2]} 9... Nbd7 {[%clk 0:02:52.9]} 10.
Rc1 {[%clk 0:02:56.5]} 10... e6 {[%clk 0:02:52.5]} 11. Qc2 {[%clk 0:02:50.3]}
11... Rc8 {[%clk 0:02:50.6]} 12. Rfd1 {[%clk 0:02:50.5]} 12... Qe7 {[%clk
0:02:47.5]} 13. Qb1 {[%clk 0:02:29.5]} 13... c5 {[%clk 0:02:42.9]} 14. cxd5
{[%clk 0:02:25.3]} 14... Nxd5 {[%clk 0:02:40.5]} 15. Nxd5 {[%clk 0:02:19]} 15...
Bxd5 {[%clk 0:02:40.3]} 16. Ba3 {[%clk 0:02:11]} 16... Rfd8 {[%clk 0:02:30.7]}
17. h3 {[%clk 0:02:10.4]} 17... Qe8 {[%clk 0:02:15.6]} 18. dxc5 {[%clk
0:02:05.8]} 18... Nxc5 {[%clk 0:02:13.6]} 19. Bxc5 {[%clk 0:02:05.2]} 19... bxc5
{[%clk 0:02:12.6]} 20. Nd2 {[%clk 0:02:01.4]} 20... Qc6 {[%clk 0:01:56.5]} 21.
Bf3 {[%clk 0:02:00.8]} 21... Bxf3 {[%clk 0:01:55.3]} 22. Nxf3 {[%clk 0:02:00]}
22... Rxd1+ {[%clk 0:01:55.2]} 23. Rxd1 {[%clk 0:02:00.5]} 23... c4 {[%clk
0:01:54.2]} 24. bxc4 {[%clk 0:01:56.9]} 24... Qxc4 {[%clk 0:01:53.8]} 25. Qb7
{[%clk 0:01:35.5]} 25... Qc7 {[%clk 0:01:42.2]} 26. Qe4 {[%clk 0:01:16.2]} 26...
Rd8 {[%clk 0:01:37.1]} 27. Rb1 {[%clk 0:01:12.1]} 27... Rb8 {[%clk 0:01:31.5]}
28. Rxb8+ {[%clk 0:01:08.1]} 28... Qxb8 {[%clk 0:01:32.4]} 29. g3 {[%clk
0:01:06.2]} 29... Bf6 {[%clk 0:01:30.2]} 30. a4 {[%clk 0:01:05.7]} 30... Kg7
{[%clk 0:01:28]} 31. Kg2 {[%clk 0:01:06.2]} 31... h5 {[%clk 0:01:26.8]} 32. Qc6
{[%clk 0:01:05.6]} 32... Qb6 {[%clk 0:01:22.9]} 33. Qxb6 {[%clk 0:01:03.9]}
33... axb6 {[%clk 0:01:23.8]} 34. Nd2 {[%clk 0:01:04.3]} 34... Be7 {[%clk
0:00:57.8]} 35. Kf3 {[%clk 0:01:02.1]} 35... f5 {[%clk 0:00:54.3]} 36. Ke2
{[%clk 0:01:01.3]} 36... h4 {[%clk 0:00:47.4]} 37. g4 {[%clk 0:00:54.9]} 37...
Kf6 {[%clk 0:00:37.5]} 38. Kf3 {[%clk 0:00:51.1]} 38... g5 {[%clk 0:00:35]} 39.
Nc4 {[%clk 0:00:40.9]} 39... Bd8 {[%clk 0:00:34.4]} 40. e4 {[%clk 0:00:37.1]}
40... Bc7 {[%clk 0:00:30.9]} 41. Ne3 {[%clk 0:00:27.5]} 41... Bf4 {[%clk
0:00:23.2]} 42. Nc4 {[%clk 0:00:17.3]} 42... Bc7 {[%clk 0:00:22.4]} 43. Kg2
{[%clk 0:00:11.7]} 43... fxe4 {[%clk 0:00:20.7]} 44. Kf1 {[%clk 0:00:11.4]}
44... e5 {[%clk 0:00:20.2]} 45. Ke2 {[%clk 0:00:11]} 45... Ke6 {[%clk
0:00:20.8]} 46. Ke3 {[%clk 0:00:09.8]} 46... Kd5 {[%clk 0:00:21.4]} 47. Nd2
{[%clk 0:00:10.2]} 47... Bd8 {[%clk 0:00:18.6]} 48. Nxe4 {[%clk 0:00:10.4]}
48... Kc4 {[%clk 0:00:18.1]} 49. Nd6+ {[%clk 0:00:07.8]} 49... Kb4 {[%clk
0:00:17.4]} 50. Nf7 {[%clk 0:00:07.8]} 50... Bf6 {[%clk 0:00:16.8]} 51. Ke4
{[%clk 0:00:08.3]} 51... Kxa4 {[%clk 0:00:17.2]} 52. Kf5 {[%clk 0:00:09]} 52...
Bg7 {[%clk 0:00:16.5]} 53. Nxg5 {[%clk 0:00:07.1]} 53... b5 {[%clk 0:00:16.1]}
54. Ne6 {[%clk 0:00:07]} 54... b4 {[%clk 0:00:16.6]} 55. Nc5+ {[%clk 0:00:05]}
55... Kb5 {[%clk 0:00:16.8]} 56. Nd3 {[%clk 0:00:04.7]} 56... Kc4 {[%clk
0:00:16.9]} 57. Ke4 {[%clk 0:00:04.8]} 57... b3 {[%clk 0:00:17]} 58. g5 {[%clk
0:00:05.1]} 58... Kc3 {[%clk 0:00:17.1]} 59. g6 {[%clk 0:00:05.2]} 59... Kd2
{[%clk 0:00:16.5]} 60. f3 {[%clk 0:00:03.9]} 60... Ke2 {[%clk 0:00:16.7]} 61.
Nb2 {[%clk 0:00:02.9]} 61... Kf2 {[%clk 0:00:17.3]} 62. Nc4 {[%clk 0:00:03]}
62... Kg3 {[%clk 0:00:17.3]} 63. Kf5 {[%clk 0:00:03.1]} 63... Kxh3 {[%clk
0:00:17.4]} 64. Ke6 {[%clk 0:00:02.5]} 64... Kg3 {[%clk 0:00:17.6]} 65. Kf7
{[%clk 0:00:03]} 65... Bh6 {[%clk 0:00:17.8]} 66. Nb2 {[%clk 0:00:01.3]} 66...
h3 {[%clk 0:00:17.4]} 67. Nd3 {[%clk 0:00:02]} 67... h2 {[%clk 0:00:17]} 68.
Nxe5 {[%clk 0:00:02.9]} 68... h1=Q {[%clk 0:00:16.6]} 69. Ng4 {[%clk 0:00:03.8]}
69... Qxf3+ {[%clk 0:00:16.5]} 70. Nf6 {[%clk 0:00:03.7]} 70... Bg5 {[%clk
0:00:16.9]} 71. g7 {[%clk 0:00:03.7]} 71... Qxf6+ {[%clk 0:00:17.1]} 72. Kg8
{[%clk 0:00:04.6]} 72... Bh6 {[%clk 0:00:17]} 73. Kh7 {[%clk 0:00:04.6]} 73...
Qxg7# {[%clk 0:00:17.9]} 0-1